{"text_format":"3","workbook":"xlsx","n_sheets":2,"sheets":["list","data"],"not_rendered":{"external_links":14},"read":"whole","date_system":"1900"}

{"sheet":"list","index":0,"n_rows":102,"n_cols":12,"rows_kept":102,"merged":[[0,0,0,11]]}
["Протокол школьного этапа  олимпиады  по Обществознанию"]
["№","Коды","Пол","Дата рождения","Участник с ОВЗ","Класс","Класс участия","Балл","Макс. Балл","Статус","Призер МЭ прошлого года","Учитель"]
[1,3,6,7,8,9,10,11,12,13,14,15]
[1,"5101","ж",{"$f":"[1]Пример!$F$19","v":"2012-09-18"},"нет",5,5,44,80,"участник",null,"Калякина Светлана Анатольевна"]
[2,"5102","ж",{"$f":"[1]Пример!$F$26","v":"2012-05-16"},"нет",5,5,45,80,"участник",null,"Калякина Светлана Анатольевна"]
[3,"5201","м",{"$f":"[2]Пример!$M$25","v":"2012-01-19"},"нет",5,5,75,80,"победитель",null,"Калякина Светлана Анатольевна"]
[4,"5202","м",{"$f":"[2]Пример!$M$5","v":"2012-04-18"},"нет",5,5,33,80,"участник",null,"Калякина Светлана Анатольевна"]
[5,"5301","ж",{"$f":"[3]Пример!$F$11","v":"2012-04-14"},"нет",5,5,23,80,"участник",null,"Калякина Светлана Анатольевна"]
[6,"5302","м",{"$f":"[3]Пример!$F$2","v":"2012-07-30"},"нет",5,5,51,80,"участник",null,"Калякина Светлана Анатольевна"]
[7,6101,"ж",{"$f":"[4]Пример!F5","v":"2011-01-28"},"нет",6,6,43,80,"участник",null,"Калякина Светлана Анатольевна"]
[8,6102,"м",{"$f":"[4]Пример!F13","v":"2011-04-07"},"нет",6,6,32,80,"участник",null,"Калякина Светлана Анатольевна"]
[9,6103,"м",{"$f":"[4]Пример!F10","v":"2011-02-02"},"нет",6,6,21,80,"участник",null,"Калякина Светлана Анатольевна"]
[10,6104,"ж",{"$f":"[4]Пример!$F$9","v":"2010-07-16"},"нет",6,6,13,80,"участник",null,"Калякина Светлана Анатольевна"]
[11,6105,"м",{"$f":"[4]Пример!F17","v":"2011-09-08"},"нет",6,6,62,80,"призер",null,"Калякина Светлана Анатольевна"]
[12,6201,"ж",{"$f":"[5]Пример!F17","v":"2011-12-19"},"нет",6,6,64,80,"призер",null,"Калякина Светлана Анатольевна"]
[13,6202,"ж",{"$f":"[5]Пример!F23","v":"2011-08-11"},"нет",6,6,51,80,"участник",null,"Калякина Светлана Анатольевна"]
[14,6203,"ж",{"$f":"[5]Пример!F15","v":"2011-06-03"},"нет",6,6,22,80,"участник",null,"Калякина Светлана Анатольевна"]
[15,6204,"ж",{"$f":"[5]Пример!F14","v":"2011-09-30"},"нет",6,6,76,80,"победитель",null,"Калякина Светлана Анатольевна"]
[16,6205,"ж",{"$f":"[5]Пример!F12","v":"2011-04-06"},"нет",6,6,54,80,"участник",null,"Калякина Светлана Анатольевна"]
[17,"6301","м",{"$f":"[6]Пример!$F$9","v":"2011-08-11"},"нет",6,6,44,80,"участник",null,"Калякина Светлана Анатольевна"]
[18,"6302","ж",{"$f":"[6]Пример!$F$21","v":"2010-12-16"},"нет",6,6,21,80,"участник",null,"Калякина Светлана Анатольевна"]
[19,"6303","ж",{"$f":"[6]Пример!$F$14","v":"2011-12-08"},"нет",6,6,42,80,"участник",null,"Калякина Светлана Анатольевна"]
[20,"6304","ж",{"$f":"[6]Пример!$F$5","v":"2010-11-24"},"нет",6,6,20,80,"участник",null,"Калякина Светлана Анатольевна"]
[21,"6305","м",{"$f":"[6]Пример!$F$3","v":"2011-07-15"},"нет",6,6,44,80,"участник",null,"Калякина Светлана Анатольевна"]
[22,"7101","ж",{"$f":"[7]Пример!$F$16","v":"2010-07-29"},"нет",7,7,43,85,"участник",null,"Калякина Светлана Анатольевна"]
[23,"7102","ж",{"$f":"[7]Пример!$F$14","v":"2010-04-01"},"нет",7,7,21,85,"участник",null,"Калякина Светлана Анатольевна"]
[24,"7103","ж",{"$f":"[7]Пример!$F$9","v":"2010-08-17"},"нет",7,7,32,85,"участник",null,"Калякина Светлана Анатольевна"]
[25,"7104","ж",{"$f":"[7]Пример!$F$17","v":"2010-04-01"},"нет",7,7,79,85,"победитель",null,"Калякина Светлана Анатольевна"]
[26,"7105","ж",{"$f":"[7]Пример!$F$3","v":"2010-01-15"},"нет",7,7,20,85,"участник",null,"Калякина Светлана Анатольевна"]
[27,7201,"м","2010-08-01","нет",7,7,44,85,"участник",null,"Калякина Светлана Анатольевна"]
[28,7202,"м",{"$f":"[8]Пример!$F$23","v":"2010-05-24"},"нет",7,7,75,85,"призер",null,"Калякина Светлана Анатольевна"]
[29,7203,"м",{"$f":"[8]Пример!$F$21","v":"2009-11-25"},"нет",7,7,13,85,"участник",null,"Калякина Светлана Анатольевна"]
[30,7204,"ж",{"$f":"[8]Пример!$F$4","v":"2010-01-06"},"нет",7,7,43,85,"участник",null,"Калякина Светлана Анатольевна"]
[31,7205,"ж",{"$f":"[8]Пример!$F$14","v":"2010-04-24"},"нет",7,7,41,85,"участник",null,"Калякина Светлана Анатольевна"]
[32,7301,"ж",{"$f":"[9]Пример!F16","v":"2010-05-27"},"нет",7,7,72,85,"призер",null,"Калякина Светлана Анатольевна"]
[33,7302,"ж",{"$f":"[9]Пример!F20","v":"2010-06-26"},"нет",7,7,33,85,"участник",null,"Калякина Светлана Анатольевна"]
[34,7303,"м",{"$f":"[9]Пример!F12","v":"2010-06-03"},"нет",7,7,15,85,"участник",null,"Калякина Светлана Анатольевна"]
[35,7304,"ж",{"$f":"[9]Пример!F26","v":"2010-11-11"},"нет",7,7,23,85,"участник",null,"Калякина Светлана Анатольевна"]
[36,7305,"ж","2010-11-03","нет",7,7,10,85,"участник",null,"Калякина Светлана Анатольевна"]
[37,8101,"м",{"$f":"[10]Пример!F2","v":"2009-06-08"},"нет",8,8,44,90,"участник",null,"Калякина Светлана Анатольевна"]
[38,8102,"м",{"$f":"[10]Пример!F12","v":"2009-01-04"},"нет",8,8,31,90,"участник",null,"Калякина Светлана Анатольевна"]
[39,8103,"ж",{"$f":"[10]Пример!F23","v":"2009-03-19"},"нет",8,8,87,90,"победитель",null,"Калякина Светлана Анатольевна"]
[40,8104,"м",{"$f":"[10]Пример!F7","v":"2009-05-11"},"нет",8,8,52,90,"участник",null,"Калякина Светлана Анатольевна"]
[41,8105,"м",{"$f":"[10]Пример!F11","v":"2009-09-29"},"нет",8,8,76,90,"призер",null,"Калякина Светлана Анатольевна"]
[42,"8201","ж",{"$f":"[11]Пример!$F$3","v":"2008-12-03"},"нет",8,8,34,90,"участник",null,"Калякина Светлана Анатольевна"]
[43,"8202","ж",{"$f":"[11]Пример!$F$7","v":"2009-10-29"},"нет",8,8,20,90,"участник",null,"Калякина Светлана Анатольевна"]
[44,"8203","ж",{"$f":"[11]Пример!$F$11","v":"2009-01-10"},"нет",8,8,34,90,"участник",null,"Калякина Светлана Анатольевна"]
[45,"8204","ж",{"$f":"[11]Пример!$F$13","v":"2009-08-26"},"нет",8,8,37,90,"участник",null,"Калякина Светлана Анатольевна"]
[46,"8205","м",{"$f":"[11]Пример!$F$14","v":"2009-05-19"},"нет",8,8,41,90,"участник",null,"Калякина Светлана Анатольевна"]
[47,"8301","ж",{"$f":"[12]Пример!$F$20","v":"2009-02-21"},"нет",8,8,45,90,"участник",null,"Калякина Светлана Анатольевна"]
[48,"8302","м",{"$f":"[12]Пример!$F$12","v":"2009-03-22"},"нет",8,8,60,90,"участник",null,"Калякина Светлана Анатольевна"]
[49,"8303","ж",{"$f":"[12]Пример!$F$8","v":"2009-07-20"},"нет",8,8,21,90,"участник",null,"Калякина Светлана Анатольевна"]
[50,"8304","м",{"$f":"[12]Пример!$F$10","v":"2009-02-12"},"нет",8,8,43,90,"участник",null,"Калякина Светлана Анатольевна"]
[51,"8305","м",{"$f":"[12]Пример!$F$18","v":"2008-10-02"},"нет",8,8,78,90,"призер",null,"Калякина Светлана Анатольевна"]
[52,"9101","ж",{"$f":"[13]Пример!$F$8","v":"2008-02-11"},"нет",9,9,53,95,"участник",null,"Калякина Светлана Анатольевна"]
[53,"9102","ж",{"$f":"[13]Пример!$F$5","v":"2008-01-14"},"нет",9,9,44,95,"участник",null,"Калякина Светлана Анатольевна"]
[54,"9103","м",{"$f":"[13]Пример!$F$7","v":"2008-08-27"},"нет",9,9,91,95,"победитель",null,"Калякина Светлана Анатольевна"]
[55,"9104","ж",{"$f":"[13]Пример!$F$27","v":"2008-02-12"},"нет",9,9,13,95,"участник",null,"Калякина Светлана Анатольевна"]
[56,"9105","ж",{"$f":"[13]Пример!$F$12","v":"2008-11-07"},"нет",9,9,78,95,"призер",null,"Калякина Светлана Анатольевна"]
[57,"9201","м",{"$f":"[14]Пример!$F$24","v":"2008-09-04"},"нет",9,9,31,95,"участник",null,"Калякина Светлана Анатольевна"]
[58,"9202","м",{"$f":"[14]Пример!$F$20","v":"2008-09-13"},"нет",9,9,83,95,"призер",null,"Калякина Светлана Анатольевна"]
[59,"9203","м",{"$f":"[14]Пример!$F$9","v":"2007-01-15"},"нет",9,9,54,95,"участник",null,"Калякина Светлана Анатольевна"]
[60,"9204","ж",{"$f":"[14]Пример!$F$10","v":"2008-04-30"},"нет",9,9,34,95,"участник",null,"Калякина Светлана Анатольевна"]
[61,"9205","ж",{"$f":"[14]Пример!$F$23","v":"2008-06-23"},"нет",9,9,55,95,"участник",null,"Калякина Светлана Анатольевна"]
[62]
[63]
[64]
[65]
[66]
[67]
[68]
[69]
[70]
[71]
[72]
[73]
[74]
[75]
[76]
[77]
[78]
[79]
[80]
[81]
[82]
[83]
[84]
[85]
[86]
[87]
[88]
[89]
[90]
[91]
[92]
[93]
[94]
[95]
[96]
[97]
[98]
[99]

{"sheet":"data","index":1,"n_rows":25,"n_cols":3,"rows_kept":25,"hidden":true}
[]
["Техника, технология и техническое творчество .  Ручная обработка древесины"]
["Техника, технология и техническое творчество .  Ручная обработка металла"]
["Техника, технология и техническое творчество .  Механическая обработка древесины"]
["Техника, технология и техническое творчество .  Механическая обработка металла"]
["Техника, технология и техническое творчество .  Электротехника"]
["Техника, технология и техническое творчество .  Робототехника"]
["Техника, технология и техническое творчество .  3d - моделирование и печать"]
["Техника, технология и техническое творчество .  Обработка материалов на лазерно-гравировальной машине"]
["Техника, технология и техническое творчество .  Промышленный дизайн"]
["Культура дома, дизайн и технологии .  Обработка швейного изделия или узла + моделирование швейных изделий"]
["Культура дома, дизайн и технологии .  Обработка швейного изделия или узла + моделирование швейных изделий с использованием графических редакторов"]
["Культура дома, дизайн и технологии .  Обработка швейного изделия или узла на швейно-вышивальном оборудовании + моделирование швейных изделий"]
["Культура дома, дизайн и технологии .  Обработка швейного изделия или узла на швейно-вышивальном оборудовании + моделирование швейных изделий с использованием графических редакторов"]
["Культура дома, дизайн и технологии .  Робототехника"]
["Культура дома, дизайн и технологии .  3d - моделирование и печать"]
["Культура дома, дизайн и технологии .  Обработка материалов на лазерно-гравировальной машине"]
["Культура дома, дизайн и технологии .  Промышленный дизайн"]
["Роботехника .  "]
["Информационная безопасность ."]
[]
[]
["участник"]
["призер",null,"да"]
["победитель"]